fUSD/lending_fUSD_20240116
["ID","MTS","AMOUNT","RATE_DAILY","PERIOD"]
[311834087,1705443075777,-500.0,0.0003315,5]
[311834088,1705443075786,-185.70046812,0.0003315,5]
[311834089,1705443075795,-500.0,0.0003315,5]
[311834090,1705443075804,-1465.46,0.0003315,5]
[311834091,1705443075814,-622.39,0.0003315,5]
[311834092,1705443075823,-500.0,0.0003315,5]
[311834093,1705443075832,-500.0,0.0003315,5]
[311834094,1705443075841,-1193.09,0.0003315,5]
[311834095,1705443075850,-500.0,0.0003315,5]
[311834096,1705443075859,-507.33509615,0.0003315,5]
[311834097,1705443075868,-2012.24,0.0003315,5]
[311834098,1705443075878,-500.0,0.0003315,5]
[311834099,1705443075887,-1003.07,0.0003315,5]
[311834100,1705443075896,-500.0,0.0003315,5]
[311834101,1705443075905,-1210.05,0.0003315,5]
[311834102,1705443075914,-500.0,0.0003315,5]
[311834103,1705443075923,-500.0,0.0003315,5]
[311834104,1705443075932,-500.0,0.0003315,5]
[311834105,1705443075942,-500.0,0.0003315,5]
[311834106,1705443075951,-933.0,0.0003315,5]
[311834107,1705443075960,-500.0,0.0003315,5]
[311834108,1705443075969,-500.0,0.0003315,5]
[311834109,1705443075979,-500.0,0.0003315,5]
[311834110,1705443075989,-500.0,0.0003315,5]
[311834111,1705443076000,-500.0,0.0003315,5]
[311834112,1705443076011,-500.0,0.0003315,5]
[311834113,1705443076021,-500.0,0.0003315,5]
[311834114,1705443076031,-500.0,0.0003315,5]
[311834115,1705443076041,-500.0,0.0003315,5]
[311834116,1705443076050,-500.0,0.0003315,5]
[311834117,1705443076060,-500.0,0.0003315,5]
[311834118,1705443076069,-500.0,0.0003315,5]
[311834119,1705443076078,-1725.6,0.0003315,5]
[311834120,1705443076087,-500.0,0.0003315,5]
[311834121,1705443076096,-500.0,0.0003315,5]
[311834122,1705443076105,-500.0,0.0003315,5]
[311834123,1705443076114,-1423.78,0.0003315,5]
[311834124,1705443076123,-500.0,0.0003315,5]
[311834125,1705443076132,-500.0,0.0003315,5]
[311834126,1705443076142,-500.0,0.0003315,5]
[311834127,1705443076151,-500.0,0.0003315,5]
[311834128,1705443076160,-526.42168208,0.0003315,5]
[311834129,1705443076169,-1523.39,0.0003315,5]
[311834130,1705443076179,-500.0,0.0003315,5]
[311834131,1705443076188,-500.0,0.0003315,5]
[311834132,1705443076201,-500.0,0.0003315,5]
[311834133,1705443076210,-500.0,0.0003315,5]
[311834134,1705443076220,-500.0,0.0003315,5]
[311834135,1705443076229,-500.0,0.0003315,5]
[311834136,1705443076240,-500.0,0.0003315,5]
[311834137,1705443076250,-1665.17,0.0003315,5]
[311834138,1705443076259,-500.0,0.0003315,5]
[311834139,1705443076270,-500.0,0.0003315,5]
[311834140,1705443076280,-1294.36,0.0003315,5]
[311834141,1705443076290,-500.0,0.0003315,5]
[311834142,1705443076299,-500.0,0.0003315,5]
[311834143,1705443076308,-500.0,0.0003315,5]
[311834144,1705443076317,-500.0,0.0003315,5]
[311834145,1705443076326,-500.0,0.0003315,5]
[311834146,1705443076336,-500.0,0.0003315,5]
[311834147,1705443076346,-653.12,0.0003315,5]
[311834148,1705443076356,-744.21,0.0003315,5]
[311834149,1705443076366,-500.0,0.0003315,5]
[311834150,1705443076376,-1002.69,0.0003315,5]
[311834151,1705443076385,-500.0,0.0003315,5]
[311834152,1705443076395,-1228.27,0.0003315,5]
[311834153,1705443076406,-500.0,0.0003315,5]
[311834154,1705443076416,-946.95,0.0003315,5]
[311834155,1705443076426,-1509.73,0.0003315,5]
[311834156,1705443076437,-594.66,0.0003315,5]
[311834157,1705443076448,-857.48,0.0003315,5]
[311834158,1705443076458,-675.79,0.0003315,5]
[311834159,1705443076468,-12438.06,0.0003315,5]
[311834160,1705443076477,-5265.2,0.0003315,5]
[311834161,1705443076486,-996.62,0.0003315,5]
[311834162,1705443076496,-582.15,0.0003315,5]
[311834163,1705443076505,-500.0,0.0003315,5]
[311834164,1705443076515,-500.0,0.0003315,5]
[311834165,1705443076524,-500.0,0.0003315,5]
[311834166,1705443076536,-500.0,0.0003315,5]
[311834167,1705443076546,-500.0,0.0003315,5]
[311834168,1705443076555,-500.0,0.0003315,5]
[311834169,1705443076564,-558.6,0.0003315,5]
[311834170,1705443076576,-1678.28,0.0003315,5]
[311834171,1705443076585,-500.0,0.0003315,5]
[311834172,1705443076594,-500.0,0.0003315,5]
[311834173,1705443076603,-3152.9,0.0003315,5]
[311834174,1705443076612,-500.0,0.0003315,5]
[311834175,1705443076621,-1238.88,0.0003315,5]
[311834176,1705443076632,-500.0,0.0003315,5]
[311834177,1705443076643,-500.0,0.0003315,5]
[311834178,1705443076652,-1887.18,0.0003315,5]
[311834179,1705443076661,-5311.91,0.0003315,5]
[311834180,1705443076671,-500.0,0.0003315,5]
[311834181,1705443076681,-500.0,0.0003315,5]
[311834182,1705443076690,-500.0,0.0003315,5]
[311834183,1705443076700,-500.0,0.0003315,5]
[311834184,1705443076710,-1481.28,0.0003315,5]
[311834185,1705443076719,-691.66,0.0003315,5]
[311834186,1705443076730,-771.21,0.0003315,5]
[311834187,1705443076739,-500.0,0.0003315,5]
[311834188,1705443076748,-1796.71,0.0003315,5]
[311834189,1705443076758,-684.92,0.0003315,5]
[311834190,1705443076767,-5197.78,0.0003315,5]
[311834191,1705443076777,-500.0,0.0003315,5]
[311834192,1705443076789,-974.73,0.0003315,5]
[311834193,1705443076799,-1435.42,0.0003315,5]
[311834194,1705443076809,-500.0,0.0003315,5]
[311834195,1705443076818,-1114.56,0.0003315,5]
[311834196,1705443076827,-2442.55,0.0003315,5]
[311834197,1705443076837,-1488.54,0.0003315,5]
[311834198,1705443076846,-1171.84,0.0003315,5]
[311834199,1705443076855,-500.0,0.0003315,5]
[311834200,1705443076865,-500.0,0.0003315,5]
[311834201,1705443076873,-500.0,0.0003315,5]
[311834202,1705443076883,-500.0,0.0003315,5]
[311834203,1705443076892,-500.0,0.0003315,5]
[311834204,1705443076901,-945.84,0.0003315,5]
[311834205,1705443076910,-4304.75,0.0003315,5]
[311834206,1705443076920,-500.0,0.0003315,5]
[311834207,1705443076929,-5691.01,0.0003315,5]
[311834208,1705443076938,-500.0,0.0003315,5]
[311834209,1705443076948,-500.0,0.0003315,5]
[311834210,1705443076957,-1212.99,0.0003315,5]
[311834211,1705443076967,-500.0,0.0003315,5]
[311834212,1705443076976,-500.0,0.0003315,5]
[311834213,1705443076985,-500.0,0.0003315,5]
[311834214,1705443076994,-500.0,0.0003315,5]
[311834215,1705443077004,-500.0,0.0003315,5]
[311834216,1705443077014,-500.0,0.0003315,5]
[311834217,1705443077024,-1456.2,0.0003315,5]
[311834218,1705443077035,-880.47,0.0003315,5]
[311834219,1705443077045,-1298.0,0.0003315,5]
[311834220,1705443077055,-500.0,0.0003315,5]
[311834221,1705443077065,-546.85842296,0.0003315,5]
[311834222,1705443077074,-500.0,0.0003315,5]
[311834223,1705443077084,-2950.5,0.0003315,5]
[311834224,1705443077093,-4955.69,0.0003315,5]
[311834225,1705443077102,-601.19,0.0003315,5]
[311834226,1705443077112,-6283.92,0.0003315,5]
[311834227,1705443077122,-500.0,0.0003315,5]
[311834228,1705443077131,-500.0,0.0003315,5]
[311834229,1705443077140,-597.43,0.0003315,5]
[311834230,1705443077150,-500.0,0.0003315,5]
[311834231,1705443077159,-500.0,0.0003315,5]
[311834232,1705443077168,-2119.97,0.0003315,5]
[311834233,1705443077178,-500.0,0.0003315,5]
[311834234,1705443077187,-500.0,0.0003315,5]
[311834235,1705443077201,-1976.44,0.0003315,5]
[311834236,1705443077210,-500.0,0.0003315,5]
[311834237,1705443077220,-500.0,0.0003315,5]
[311834238,1705443077230,-871.39,0.0003315,5]
[311834239,1705443077240,-500.0,0.0003315,5]
[311834240,1705443077249,-1042.13,0.0003315,5]
[311834241,1705443077258,-500.0,0.0003315,5]
[311834242,1705443077270,-542.3221312,0.0003315,5]
[311834243,1705443077279,-3655.5,0.0003315,5]
[311834244,1705443077290,-500.0,0.0003315,5]
[311834245,1705443077300,-500.0,0.0003315,5]
[311834246,1705443077309,-956.18,0.0003315,5]
[311834247,1705443077318,-3002.07,0.0003315,5]
[311834248,1705443077327,-4703.2,0.0003315,5]
[311834249,1705443077336,-500.0,0.0003315,5]
[311834250,1705443077346,-501.03,0.0003315,5]
[311834251,1705443077355,-1451.03,0.0003315,5]
[311834252,1705443077364,-500.0,0.0003315,5]
[311834253,1705443077373,-500.0,0.0003315,5]
[311834254,1705443077382,-1528.59,0.0003315,5]
[311834255,1705443077392,-500.0,0.0003315,5]
[311834256,1705443077401,-2122.08,0.0003315,5]
[311834257,1705443077410,-500.0,0.0003315,5]
[311834258,1705443077419,-1499.2,0.0003315,5]
[311834259,1705443077428,-500.0,0.0003315,5]
[311834260,1705443077437,-500.0,0.0003315,5]
[311834261,1705443077446,-2254.19,0.0003315,5]
[311834262,1705443077455,-1360.43,0.0003315,5]
[311834263,1705443077464,-500.0,0.0003315,5]
[311834264,1705443077473,-500.0,0.0003315,5]
[311834265,1705443077482,-4265.04,0.0003315,5]
[311834266,1705443077491,-2614.51,0.0003315,5]
[311834267,1705443077500,-500.0,0.0003315,5]
[311834268,1705443077509,-500.0,0.0003315,5]
[311834269,1705443077518,-500.0,0.0003315,5]
[311834270,1705443077527,-602.72498837,0.0003315,5]
[311834271,1705443077538,-500.0,0.0003315,5]
[311834272,1705443077547,-500.0,0.0003315,5]
[311834273,1705443077557,-666.55,0.0003315,5]
[311834274,1705443077566,-1475.42,0.0003315,5]
[311834275,1705443077575,-500.0,0.0003315,5]
[311834276,1705443077584,-1464.55,0.0003315,5]
[311834277,1705443077592,-582.65,0.0003315,5]
[311834278,1705443077601,-584.84122276,0.0003315,5]
[311834279,1705443077609,-550.0,0.0003315,5]
[311834280,1705443077617,-500.0,0.0003315,5]
[311834281,1705443077627,-2059.63,0.0003315,5]
[311834282,1705443077635,-500.0,0.0003315,5]
[311834283,1705443077645,-18478.86,0.0003315,5]
[311834284,1705443077654,-1420.99,0.0003315,5]
[311834285,1705443077663,-500.0,0.0003315,5]
[311834286,1705443077673,-500.0,0.0003315,5]
[311834287,1705443077682,-892.5,0.0003315,5]
[311834288,1705443077691,-3840.99,0.0003315,5]
[311834289,1705443077700,-1174.67,0.0003315,5]
[311834290,1705443077710,-500.0,0.0003315,5]
[311834291,1705443077720,-2832.48,0.0003315,5]
[311834292,1705443077729,-688.4,0.0003315,5]
[311834293,1705443077738,-500.0,0.0003315,5]
[311834294,1705443077747,-1085.5,0.0003315,5]
[311834295,1705443077757,-500.0,0.0003315,5]
[311834296,1705443077767,-500.0,0.0003315,5]
[311834297,1705443077776,-755.55,0.0003315,5]
[311834298,1705443077786,-880.27,0.0003315,5]
[311834299,1705443077796,-500.0,0.0003315,5]
[311834300,1705443077805,-23390.4,0.0003315,5]
[311834301,1705443077817,-500.0,0.0003315,5]
[311834302,1705443077827,-1350.78,0.0003315,5]
[311834303,1705443077837,-4952.01,0.0003315,5]
[311834304,1705443077846,-3683.79,0.0003315,5]
[311834305,1705443077856,-559.24,0.0003315,5]
[311834306,1705443077866,-500.0,0.0003315,5]
[311834307,1705443077877,-808.53,0.0003315,5]
[311834308,1705443077888,-500.0,0.0003315,5]
[311834309,1705443077897,-946.5,0.0003315,5]
[311834310,1705443077907,-504.97637691,0.0003315,5]
[311834311,1705443077918,-500.0,0.0003315,5]
[311834312,1705443077928,-940.72,0.0003315,5]
[311834313,1705443077938,-500.0,0.0003315,5]
[311834314,1705443077949,-567.54,0.0003315,5]
[311834315,1705443077959,-1634.08,0.0003315,5]
[311834316,1705443077968,-3436.6,0.0003315,5]
[311834317,1705443077979,-778.93,0.0003315,5]
[311834318,1705443077990,-12641.15,0.0003315,5]
[311834319,1705443077999,-1452.42,0.0003315,5]
[311834320,1705443078008,-4055.11,0.0003315,5]
[311834321,1705443078018,-8969.74,0.0003315,5]
[311834322,1705443078028,-169.64215272,0.0003315,5]
[311834323,1705443078038,-500.0,0.0003315,5]
[311834324,1705443078047,-3419.85,0.0003315,5]
[311834325,1705443078056,-634.05550298,0.0003315,5]
[311834326,1705443078065,-500.0,0.0003315,5]
[311834327,1705443078075,-2797.43,0.0003315,5]
[311834328,1705443078085,-5998.18,0.0003315,5]
[311834329,1705443078095,-555.54,0.0003315,5]
[311834330,1705443078105,-1131.31,0.0003315,5]
[311834331,1705443078114,-500.0,0.0003315,5]
[311834332,1705443078124,-500.0,0.0003315,5]
[311834333,1705443078133,-1016.8,0.0003315,5]
[311834334,1705443078143,-474.70744744,0.0003315,5]
[311834335,1705443078152,-500.0,0.0003315,5]
[311834336,1705443078161,-4124.99,0.0003315,5]
[311834337,1705443078170,-1673.14,0.0003315,5]
[311834338,1705443078180,-500.0,0.0003315,5]
[311834339,1705443078194,-10493.93,0.0003315,5]
[311834340,1705443078203,-500.0,0.0003315,5]
[311834341,1705443078213,-500.0,0.0003315,5]
[311834342,1705443078420,-14600.13,0.0003315,5]
[311834343,1705443078443,-500.0,0.0003315,5]
[311834344,1705443078453,-786.47,0.0003315,5]
[311834345,1705443078462,-500.0,0.0003315,5]
[311834346,1705443078471,-481.49050843,0.0003315,5]
[311834347,1705443078480,-3089.83,0.0003315,5]
[311834348,1705443078489,-1613.5,0.0003315,5]
[311834349,1705443078498,-1949.49,0.0003315,5]
[311834350,1705443078507,-500.0,0.0003315,5]
[311834351,1705443078516,-562.05,0.0003315,5]
[311834352,1705443078525,-613.43,0.0003315,5]
[311834353,1705443078535,-707.97,0.0003315,5]
[311834354,1705443078544,-500.0,0.0003315,5]
[311834355,1705443078553,-500.0,0.0003315,5]
[311834356,1705443078563,-2082.65,0.0003315,5]
[311834357,1705443078574,-3468.46,0.0003315,5]
[311834358,1705443078586,-822.68,0.0003315,5]
[311834359,1705443078596,-500.0,0.0003315,5]
[311834360,1705443078606,-7125.37,0.0003315,5]
[311834361,1705443078615,-736.33,0.0003315,5]
[311834362,1705443078626,-500.0,0.0003315,5]
[311834363,1705443078636,-500.0,0.0003315,5]
[311834364,1705443078645,-2886.92,0.0003315,5]
[311834365,1705443078654,-2229.93,0.0003315,5]
[311834366,1705443078663,-511.35,0.0003315,5]
[311834367,1705443078672,-3640.07,0.0003315,5]
[311834368,1705443078682,-2099.56,0.0003315,5]
[311834369,1705443078691,-544.48,0.0003315,5]
[311834370,1705443078700,-1843.03,0.0003315,5]
[311834371,1705443078710,-876.51,0.0003315,5]
[311834372,1705443078719,-500.0,0.0003315,5]
[311834373,1705443078728,-1476.88,0.0003315,5]
[311834374,1705443078737,-500.0,0.0003315,5]
[311834375,1705443078746,-500.0,0.0003315,5]
[311834376,1705443078756,-500.0,0.0003315,5]
[311834377,1705443078766,-573.19,0.0003315,5]
[311834378,1705443078776,-500.0,0.0003315,5]
[311834379,1705443078787,-2046.08,0.0003315,5]
[311834380,1705443078797,-1494.77,0.0003315,5]
[311834381,1705443078807,-500.0,0.0003315,5]
[311834382,1705443078817,-500.0,0.0003315,5]
[311834383,1705443078826,-500.0,0.0003315,5]
[311834384,1705443078837,-223.98515755,0.0003315,5]
[311834385,1705443078847,-1276.82,0.0003315,5]
[311834386,1705443078858,-500.0,0.0003315,5]
[311834387,1705443078868,-1112.1,0.0003315,5]
[311834388,1705443078877,-4884.23,0.0003315,5]
[311834389,1705443078886,-696.73,0.0003315,5]
[311834390,1705443078896,-3645.21,0.0003315,5]
[311834391,1705443078907,-500.0,0.0003315,5]
[311834392,1705443078917,-607.16206912,0.0003315,5]
[311834393,1705443078926,-500.0,0.0003315,5]
[311834394,1705443078937,-2821.5,0.0003315,5]
[311834395,1705443078947,-500.0,0.0003315,5]
[311834396,1705443078956,-849.27,0.0003315,5]
[311834397,1705443078966,-3977.98,0.0003315,5]
[311834398,1705443078976,-14194.59,0.0003315,5]
[311834399,1705443078986,-947.19,0.0003315,5]
[311834400,1705443078996,-500.0,0.0003315,5]
[311834401,1705443079005,-1146.18,0.0003315,5]
[311834402,1705443079015,-500.0,0.0003315,5]
[311834403,1705443079025,-500.0,0.0003315,5]
[311834404,1705443079034,-500.0,0.0003315,5]
[311834405,1705443079044,-500.0,0.0003315,5]
[311834406,1705443079053,-641.77616272,0.0003315,5]
[311834407,1705443079062,-500.0,0.0003315,5]
[311834408,1705443079072,-774.23,0.0003315,5]
[311834409,1705443079081,-1402.57,0.0003315,5]
[311834410,1705443079090,-500.0,0.0003315,5]
[311834411,1705443079100,-513.64565617,0.0003315,5]
[311834412,1705443079110,-500.0,0.0003315,5]
[311834413,1705443079119,-2366.96,0.0003315,5]
[311834414,1705443079128,-1513.21,0.0003315,5]
[311834415,1705443079138,-1000.0,0.0003315,5]
[311834416,1705443079147,-500.0,0.0003315,5]
[311834417,1705443079156,-791.03,0.0003315,5]
[311834418,1705443079166,-881.89,0.0003315,5]
[311834419,1705443079175,-500.0,0.0003315,2]
[311834420,1705443079188,-1780.46,0.0003315,5]
[311834421,1705443079201,-500.0,0.0003315,5]
[311834422,1705443079211,-3581.52,0.0003315,5]
[311834423,1705443079221,-500.0,0.0003315,5]
[311834424,1705443079231,-500.0,0.0003315,5]
[311834425,1705443079241,-500.0,0.0003315,5]
[311834426,1705443079250,-500.0,0.0003315,5]
[311834427,1705443079260,-2982.92,0.0003315,5]
[311834428,1705443079270,-13364.37,0.0003315,5]
[311834429,1705443079280,-577.37,0.0003315,5]
[311834430,1705443079290,-500.0,0.0003315,5]
[311834431,1705443079299,-500.0,0.0003315,5]
[311834432,1705443079308,-6895.94,0.0003315,5]
[311834433,1705443079317,-25104.82,0.0003315,5]
[311834434,1705443079327,-2948.63,0.0003315,5]
[311834435,1705443079336,-19185.3,0.0003315,5]
[311834436,1705443079345,-530.02,0.0003315,5]
[311834437,1705443079355,-1274.69,0.0003315,5]
[311834438,1705443079364,-500.0,0.0003315,5]
[311834439,1705443079374,-1754.86,0.0003315,5]
[311834440,1705443079383,-500.0,0.0003315,5]
[311834441,1705443079392,-456.84311298,0.0003315,5]
[311834442,1705443079401,-3462.5,0.0003315,5]
[311834443,1705443079411,-661.99,0.0003315,5]
[311834444,1705443079421,-500.0,0.0003315,5]
[311834445,1705443079430,-910.05,0.0003315,5]
[311834446,1705443079440,-981.42,0.0003315,2]
[311834447,1705443079449,-52929.96,0.0003315,5]
[311834448,1705443079458,-500.0,0.0003315,5]
[311834449,1705443079468,-500.0,0.0003315,5]
[311834450,1705443079477,-1046.24,0.0003315,5]
[311834451,1705443079486,-545.14,0.0003315,5]
[311834452,1705443079495,-762.01,0.0003315,5]
[311834453,1705443079504,-502.09,0.0003315,5]
[311834454,1705443079513,-500.0,0.0003315,5]
[311834455,1705443079522,-2560.36,0.0003315,5]
[311834456,1705443079531,-860.77,0.0003315,5]
[311834457,1705443079541,-2129.74,0.0003315,5]
[311834458,1705443079550,-1596.95,0.0003315,5]
[311834459,1705443079559,-3810.76,0.0003315,5]
[311834460,1705443079568,-935.63,0.0003315,5]
[311834461,1705443079577,-500.0,0.0003315,5]
[311834462,1705443079587,-706.84,0.0003315,5]
[311834463,1705443079596,-6829.0,0.0003315,5]
[311834464,1705443079606,-500.0,0.0003315,5]
[311834465,1705443079615,-500.0,0.0003315,5]
[311834466,1705443079624,-500.0,0.0003315,5]
[311834467,1705443079634,-3318.06,0.0003315,5]
[311834468,1705443079643,-1514.02,0.0003315,5]
[311834469,1705443079652,-1548.52,0.0003315,5]
[311834470,1705443079662,-959.63,0.0003315,5]
[311834471,1705443079671,-500.0,0.0003315,5]
[311834472,1705443079680,-1615.07,0.0003315,5]
[311834473,1705443079689,-500.0,0.0003315,5]
[311834474,1705443079698,-815.92,0.0003315,5]
[311834475,1705443079708,-3681.42,0.0003315,5]
[311834476,1705443079717,-505.99034316,0.0003315,5]
[311834477,1705443079726,-578.77,0.0003315,5]
[311834478,1705443079736,-500.0,0.0003315,5]
[311834479,1705443079745,-3941.04,0.0003315,5]
[311834480,1705443079754,-2450.63,0.0003315,5]
[311834481,1705443079763,-1318.83,0.0003315,5]
[311834482,1705443079773,-1141.01,0.0003315,5]
[311834483,1705443079784,-500.0,0.0003315,5]
[311834484,1705443079794,-1251.36,0.0003315,5]
[311834485,1705443079807,-2579.3,0.0003315,5]
[311834486,1705443079817,-500.0,0.0003315,5]
[311834487,1705443079827,-883.57,0.0003315,5]
[311834488,1705443079838,-1579.45,0.0003315,5]
[311834489,1705443079848,-500.0,0.0003315,5]
[311834490,1705443079857,-4300.36,0.0003315,5]
[311834491,1705443079868,-500.0,0.0003315,5]
[311834492,1705443079877,-1052.72,0.0003315,5]
[311834493,1705443079886,-500.0,0.0003315,5]
[311834494,1705443079897,-500.0,0.0003315,5]
[311834495,1705443079908,-500.0,0.0003315,5]
[311834496,1705443079918,-528.3,0.0003315,5]
[311834497,1705443079929,-500.0,0.0003315,5]
[311834498,1705443079940,-2143.99,0.0003315,5]
[311834499,1705443079949,-12433.64,0.0003315,5]
[311834500,1705443079959,-500.0,0.0003315,5]
[311834501,1705443079970,-703.66,0.0003315,5]
[311834502,1705443079979,-807.89,0.0003315,5]
[311834503,1705443079988,-4291.96,0.0003315,5]
[311834504,1705443079998,-500.0,0.0003315,5]
[311834505,1705443080007,-500.0,0.0003315,5]
[311834506,1705443080017,-889.13,0.0003315,5]
[311834507,1705443080026,-500.0,0.0003315,5]
[311834508,1705443080035,-5025.75,0.0003315,5]
[311834509,1705443080044,-7876.62,0.0003315,5]
[311834510,1705443080054,-1226.15,0.0003315,5]
[311834511,1705443080063,-998.18,0.0003315,5]
[311834512,1705443080072,-1725.7,0.0003315,5]
[311834513,1705443080082,-500.0,0.0003315,5]
[311834514,1705443080091,-500.0,0.0003315,5]
[311834515,1705443080101,-500.0,0.0003315,5]
[311834516,1705443080110,-966.64,0.0003315,5]
[311834517,1705443080119,-500.0,0.0003315,5]
[311834518,1705443080129,-211.58628521,0.0003315,5]
[311834519,1705443080139,-2825.32,0.0003315,5]
[311834520,1705443080149,-1263.19,0.0003315,5]
[311834521,1705443080159,-20000.0,0.0003315,3]
[311834522,1705443080168,-2951.09,0.0003315,5]
[311834523,1705443080178,-500.0,0.0003315,5]
[311834524,1705443080191,-500.0,0.0003315,5]
[311834525,1705443080200,-2886.73,0.0003315,5]
[311834526,1705443080210,-500.0,0.0003315,5]
[311834527,1705443080220,-515.97,0.0003315,5]
[311834528,1705443080231,-1669.69,0.0003315,5]
[311834529,1705443080241,-813.3,0.0003315,5]
[311834530,1705443080250,-713.64,0.0003315,5]
[311834531,1705443080260,-500.0,0.0003315,5]
[311834532,1705443080271,-1794.95,0.0003315,5]
[311834533,1705443080282,-1174.84,0.0003315,5]
[311834534,1705443080291,-899.19,0.0003315,5]
[311834535,1705443080300,-1743.52,0.0003315,5]
[311834536,1705443080310,-2751.63,0.0003315,5]
[311834537,1705443080319,-500.0,0.0003315,5]
[311834538,1705443080328,-500.0,0.0003315,5]
[311834539,1705443080338,-500.0,0.0003315,5]
[311834540,1705443080347,-2490.29,0.0003315,5]
[311834541,1705443080357,-500.0,0.0003315,5]
[311834542,1705443080366,-500.0,0.0003315,5]
[311834543,1705443080376,-1216.63,0.0003315,5]
[311834544,1705443080386,-500.0,0.0003315,5]
[311834545,1705443080396,-500.0,0.0003315,5]
[311834546,1705443080406,-2034.2,0.0003315,5]
[311834547,1705443080417,-500.0,0.0003315,5]
[311834548,1705443080426,-3101.8,0.0003315,5]
[311834549,1705443080436,-500.0,0.0003315,5]
[311834550,1705443080446,-1713.88,0.0003315,5]
[311834551,1705443080456,-977.75,0.0003315,5]
[311834552,1705443080465,-501.97,0.0003315,5]
[311834553,1705443080474,-500.0,0.0003315,5]
[311834554,1705443080484,-1469.93,0.0003315,5]
[311834555,1705443080493,-500.0,0.0003315,5]
[311834556,1705443080503,-500.0,0.0003315,5]
[311834557,1705443080512,-500.0,0.0003315,5]
[311834558,1705443080522,-500.0,0.0003315,5]
[311834559,1705443080531,-2758.01,0.0003315,5]
[311834560,1705443080541,-500.0,0.0003315,5]
[311834561,1705443080550,-2599.13,0.0003315,5]
[311834562,1705443080559,-848.17,0.0003315,5]
[311834563,1705443080569,-500.0,0.0003315,5]
[311834564,1705443080578,-259.37445261,0.0003315,5]
[311834565,1705443080588,-1731.85,0.0003315,5]
[311834566,1705443080597,-500.0,0.0003315,5]
[311834567,1705443080606,-1212.77,0.0003315,5]
[311834568,1705443080616,-500.0,0.0003315,5]
[311834569,1705443080625,-6609.05,0.0003315,5]
[311834570,1705443080635,-3623.43,0.0003315,5]
[311834571,1705443080645,-500.0,0.0003315,5]
[311834572,1705443080654,-35051.94,0.0003315,5]
[311834573,1705443080663,-500.0,0.0003315,5]
[311834574,1705443080672,-500.0,0.0003315,5]
[311834575,1705443080682,-2518.04,0.0003315,5]
[311834576,1705443080691,-1396.35,0.0003315,5]
[311834577,1705443080702,-500.0,0.0003315,5]
[311834578,1705443080711,-3811.23,0.0003315,5]
[311834579,1705443080720,-633.19,0.0003315,5]
[311834580,1705443080729,-564.72637288,0.0003315,5]
[311834581,1705443080739,-500.0,0.0003315,5]
[311834582,1705443080748,-300.0,0.0003315,5]
[311834583,1705443080758,-500.0,0.0003315,5]
[311834584,1705443080767,-3198.24,0.0003315,5]
[311834585,1705443080777,-500.0,0.0003315,5]
[311834586,1705443080788,-3292.25,0.0003315,5]